[Event "Titled Tuesday Blitz May 31 Early 2022"]
[White "Girinath, P.D.S."]
[Black "Fedoseev, Vladimir"]
[WhiteFideId "5000572"]
[BlackFideId "24130737"]
[WhiteElo "2369"]
[BlackElo "2726"]
[Result "0-1"]
[Round "03"]
[TimeControl "180+1"]
[Date "2022.05.31"]
[WhiteClock "0:00:03"]
[BlackClock "0:00:51"]

1. e4 {[%clk 0:03:00]}  c6 {[%clk 0:02:58]} 2. Nc3 {[%clk 0:02:57]}  d5 {[%clk 0:02:56]} 3. Nf3 {[%clk 0:02:57]}  Bg4 {[%clk 0:02:54]} 4. h3 {[%clk 0:02:56]}  Bxf3 {[%clk 0:02:53]} 5. Qxf3 {[%clk 0:02:57]}  e6 {[%clk 0:02:53]} 6. Be2 {[%clk 0:02:55]}  Bc5 {[%clk 0:02:51]} 7. O-O {[%clk 0:02:53]}  Ne7 {[%clk 0:02:51]} 8. d3 {[%clk 0:02:40]}  O-O {[%clk 0:02:50]} 9. Rd1 {[%clk 0:02:31]}  Bd4 {[%clk 0:02:47]} 10. Nb1 {[%clk 0:02:24]}  f5 {[%clk 0:02:44]} 11. exd5 {[%clk 0:02:22]}  exd5 {[%clk 0:02:38]} 12. c3 {[%clk 0:02:16]}  Bb6 {[%clk 0:02:39]} 13. d4 {[%clk 0:02:11]}  Nd7 {[%clk 0:02:39]} 14. c4 {[%clk 0:02:03]}  Nf6 {[%clk 0:02:39]} 15. Nc3 {[%clk 0:02:01]}  Ne4 {[%clk 0:02:37]} 16. Bf4 {[%clk 0:01:53]}  Qd7 {[%clk 0:02:35]} 17. Qe3 {[%clk 0:01:43]}  Rae8 {[%clk 0:02:31]} 18. c5 {[%clk 0:01:36]}  Bc7 {[%clk 0:02:27]} 19. Nxe4 {[%clk 0:01:12]}  fxe4 {[%clk 0:02:14]} 20. Bg4 {[%clk 0:00:58]}  Qd8 {[%clk 0:02:10]} 21. Bxc7 {[%clk 0:00:50]}  Qxc7 {[%clk 0:02:11]} 22. Qg3 {[%clk 0:00:47]}  Qxg3 {[%clk 0:02:02]} 23. fxg3 {[%clk 0:00:47]}  Nf5 {[%clk 0:02:02]} 24. Bxf5 {[%clk 0:00:46]}  Rxf5 {[%clk 0:02:03]} 25. Rf1 {[%clk 0:00:46]}  Rxf1+ {[%clk 0:01:36]} 26. Kxf1 {[%clk 0:00:47]}  h5 {[%clk 0:01:34]} 27. Ke2 {[%clk 0:00:46]}  Re6 {[%clk 0:01:32]} 28. b4 {[%clk 0:00:42]}  Rg6 {[%clk 0:01:31]} 29. Kf2 {[%clk 0:00:42]}  Kf7 {[%clk 0:01:30]} 30. a4 {[%clk 0:00:41]}  Ke6 {[%clk 0:01:29]} 31. b5 {[%clk 0:00:42]}  Kd7 {[%clk 0:01:27]} 32. Rb1 {[%clk 0:00:41]}  Kc7 {[%clk 0:01:23]} 33. b6+ {[%clk 0:00:28]}  axb6 {[%clk 0:01:21]} 34. Rxb6 {[%clk 0:00:29]}  Rf6+ {[%clk 0:01:20]} 35. Ke2 {[%clk 0:00:28]}  Rf8 {[%clk 0:01:20]} 36. Rb4 {[%clk 0:00:21]}  Ra8 {[%clk 0:01:19]} 37. Ke3 {[%clk 0:00:20]}  Ra6 {[%clk 0:01:01]} 38. Kf4 {[%clk 0:00:15]}  b6 {[%clk 0:01:02]} 39. Kg5 {[%clk 0:00:08]}  bxc5 {[%clk 0:00:59]} 40. dxc5 {[%clk 0:00:09]}  Ra5 {[%clk 0:01:00]} 41. Kxh5 {[%clk 0:00:10]}  Rxc5 {[%clk 0:00:59]} 42. Kg4 {[%clk 0:00:07]}  Rc2 {[%clk 0:00:56]} 43. a5 {[%clk 0:00:04]}  Ra2 {[%clk 0:00:51]} 44. h4 {[%clk 0:00:02]}  Rxa5 {[%clk 0:00:50]} 45. h5 {[%clk 0:00:02]}  c5 {[%clk 0:00:49]} 46. Rb1 {[%clk 0:00:02]}  d4 {[%clk 0:00:49]} 47. Kg5 {[%clk 0:00:01]}  e3 {[%clk 0:00:49]} 48. Kg6 {[%clk 0:00:02]}  e2 {[%clk 0:00:48]} 49. Kxg7 {[%clk 0:00:02]}  d3 {[%clk 0:00:49]} 50. h6 {[%clk 0:00:03]}  d2 {[%clk 0:00:49]} 51. h7 {[%clk 0:00:03]}  e1=Q {[%clk 0:00:50]} 52. Rxe1 {[%clk 0:00:03]}  dxe1=Q {[%clk 0:00:51]} 53. h8=Q {[%clk 0:00:03]}  Qc3+ {[%clk 0:00:51]} 0-1


[Site "https://www.chess.com"]

[Event "Titled Tuesday Blitz May 31 Early 2022"]
[White "Jaferian, Koosha"]
[Black "Niemann, Hans Moke"]
[WhiteFideId "12507440"]
[BlackFideId "2093596"]
[WhiteElo "2030"]
[BlackElo "2632"]
[Result "0-1"]
[Round "03"]
[TimeControl "180+1"]
[Date "2022.05.31"]
[WhiteClock "0:00:44"]
[BlackClock "0:01:34"]

1. Nf3 {[%clk 0:03:00]}  Nf6 {[%clk 0:02:58]} 2. b3 {[%clk 0:03:01]}  c5 {[%clk 0:02:56]} 3. Bb2 {[%clk 0:03:01]}  Nc6 {[%clk 0:02:57]} 4. e3 {[%clk 0:03:01]}  a6 {[%clk 0:02:46]} 5. c4 {[%clk 0:03:01]}  d6 {[%clk 0:02:42]} 6. d4 {[%clk 0:03:01]}  cxd4 {[%clk 0:02:41]} 7. Nxd4 {[%clk 0:03:02]}  Bg4 {[%clk 0:02:40]} 8. Be2 {[%clk 0:02:59]}  Bd7 {[%clk 0:02:34]} 9. O-O {[%clk 0:02:51]}  e6 {[%clk 0:02:31]} 10. Bf3 {[%clk 0:02:48]}  Be7 {[%clk 0:02:30]} 11. Nc3 {[%clk 0:02:48]}  Qc7 {[%clk 0:02:28]} 12. Rc1 {[%clk 0:02:47]}  Ne5 {[%clk 0:02:25]} 13. Be2 {[%clk 0:02:44]}  O-O {[%clk 0:02:26]} 14. Nf3 {[%clk 0:02:45]}  Bc6 {[%clk 0:02:24]} 15. Nxe5 {[%clk 0:02:22]}  dxe5 {[%clk 0:02:25]} 16. g3 {[%clk 0:02:23]}  e4 {[%clk 0:02:20]} 17. Re1 {[%clk 0:02:15]}  Rad8 {[%clk 0:02:11]} 18. Qc2 {[%clk 0:02:13]}  Qa5 {[%clk 0:02:11]} 19. Bf1 {[%clk 0:02:09]}  Qf5 {[%clk 0:02:09]} 20. Bg2 {[%clk 0:02:08]}  Rd3 {[%clk 0:02:08]} 21. Ne2 {[%clk 0:01:57]}  e5 {[%clk 0:01:59]} 22. Rcd1 {[%clk 0:01:50]}  Ng4 {[%clk 0:01:43]} 23. Nc1 {[%clk 0:01:44]}  Rfd8 {[%clk 0:01:38]} 24. h3 {[%clk 0:00:47]}  Rxd1 {[%clk 0:01:35]} 25. Rxd1 {[%clk 0:00:43]}  Rxd1+ {[%clk 0:01:34]} 26. Qxd1 {[%clk 0:00:43]}  Qxf2+ {[%clk 0:01:34]} 27. Kh1 {[%clk 0:00:44]}  Qxg2+ {[%clk 0:01:34]} 0-1


[Site "https://www.chess.com"]

[Event "Titled Tuesday Blitz May 31 Early 2022"]
[White "Jumabayev, Rinat"]
[Black "Le, Tuan Minh"]
[WhiteFideId "13702661"]
[BlackFideId "12401153"]
[WhiteElo "2561"]
[BlackElo "2450"]
[Result "0-1"]
[Round "03"]
[TimeControl "180+1"]
[Date "2022.05.31"]
[WhiteClock "0:00:09"]
[BlackClock "0:00:08"]

1. d4 {[%clk 0:03:00]}  d5 {[%clk 0:03:00]} 2. c4 {[%clk 0:03:01]}  c6 {[%clk 0:02:59]} 3. Nf3 {[%clk 0:03:01]}  Nf6 {[%clk 0:02:59]} 4. Qb3 {[%clk 0:03:00]}  dxc4 {[%clk 0:02:58]} 5. Qxc4 {[%clk 0:03:01]}  Bg4 {[%clk 0:02:59]} 6. Qb3 {[%clk 0:02:59]}  Qb6 {[%clk 0:02:58]} 7. Nbd2 {[%clk 0:02:59]}  Nbd7 {[%clk 0:02:56]} 8. Nc4 {[%clk 0:03:00]}  Qc7 {[%clk 0:02:41]} 9. g3 {[%clk 0:02:59]}  Bxf3 {[%clk 0:02:15]} 10. Qxf3 {[%clk 0:02:55]}  Nb6 {[%clk 0:02:13]} 11. Ne5 {[%clk 0:02:35]}  e6 {[%clk 0:02:12]} 12. Bd2 {[%clk 0:02:33]}  Rd8 {[%clk 0:02:05]} 13. e3 {[%clk 0:02:32]}  Bd6 {[%clk 0:02:04]} 14. Nd3 {[%clk 0:02:27]}  O-O {[%clk 0:01:56]} 15. Bg2 {[%clk 0:02:10]}  e5 {[%clk 0:01:30]} 16. Nxe5 {[%clk 0:02:03]}  Bxe5 {[%clk 0:01:31]} 17. dxe5 {[%clk 0:02:04]}  Rxd2 {[%clk 0:01:31]} 18. exf6 {[%clk 0:02:03]}  Rfd8 {[%clk 0:01:09]} 19. fxg7 {[%clk 0:01:54]}  Qe5 {[%clk 0:01:06]} 20. O-O {[%clk 0:01:53]}  Rxb2 {[%clk 0:01:06]} 21. a4 {[%clk 0:01:53]}  Kxg7 {[%clk 0:00:58]} 22. a5 {[%clk 0:01:50]}  Nd5 {[%clk 0:00:58]} 23. Ra4 {[%clk 0:01:50]}  Nf6 {[%clk 0:00:49]} 24. Rf4 {[%clk 0:01:44]}  Rd5 {[%clk 0:00:35]} 25. a6 {[%clk 0:01:29]}  bxa6 {[%clk 0:00:36]} 26. Rc1 {[%clk 0:01:27]}  Rc5 {[%clk 0:00:18]} 27. Rxc5 {[%clk 0:01:17]}  Qxc5 {[%clk 0:00:19]} 28. Rxf6 {[%clk 0:01:13]}  Rb1+ {[%clk 0:00:18]} 29. Bf1 {[%clk 0:01:13]}  Qc4 {[%clk 0:00:19]} 30. Rxf7+ {[%clk 0:00:22]}  Qxf7 {[%clk 0:00:20]} 31. Qxc6 {[%clk 0:00:22]}  Rb2 {[%clk 0:00:18]} 32. Qc3+ {[%clk 0:00:21]}  Qf6 {[%clk 0:00:18]} 33. Qc7+ {[%clk 0:00:21]}  Kh6 {[%clk 0:00:16]} 34. f4 {[%clk 0:00:20]}  Rb3 {[%clk 0:00:11]} 35. Kf2 {[%clk 0:00:18]}  Rb2+ {[%clk 0:00:06]} 36. Kf3 {[%clk 0:00:16]}  Rb6 {[%clk 0:00:05]} 37. Bd3 {[%clk 0:00:16]}  Qc6+ {[%clk 0:00:06]} 38. Qxc6+ {[%clk 0:00:15]}  Rxc6 {[%clk 0:00:06]} 39. e4 {[%clk 0:00:16]}  a5 {[%clk 0:00:07]} 40. e5 {[%clk 0:00:17]}  a4 {[%clk 0:00:08]} 41. Ke4 {[%clk 0:00:17]}  a3 {[%clk 0:00:08]} 42. Bb1 {[%clk 0:00:17]}  Rb6 {[%clk 0:00:08]} 43. Ba2 {[%clk 0:00:17]}  Rb2 {[%clk 0:00:09]} 44. Bd5 {[%clk 0:00:18]}  Rd2 {[%clk 0:00:09]} 45. Bc4 {[%clk 0:00:11]}  Rc2 {[%clk 0:00:08]} 46. Bb3 {[%clk 0:00:10]}  a2 {[%clk 0:00:08]} 47. Bxa2 {[%clk 0:00:09]}  Rxa2 {[%clk 0:00:09]} 48. f5 {[%clk 0:00:09]}  Kg7 {[%clk 0:00:08]} 0-1


[Site "https://www.chess.com"]

[Event "Titled Tuesday Blitz May 31 Early 2022"]
[White "Koellner, Ruben Gideon"]
[Black "Indjic, Aleksandar"]
[WhiteFideId "12993093"]
[BlackFideId "911925"]
[WhiteElo "2541"]
[BlackElo "2616"]
[Result "1-0"]
[Round "03"]
[TimeControl "180+1"]
[Date "2022.06.01"]
[WhiteClock "0:00:12"]
[BlackClock "0:00:02"]

1. d4 {[%clk 0:02:23]}  Nf6 {[%clk 0:02:53]} 2. Bg5 {[%clk 0:02:22]}  e6 {[%clk 0:02:51]} 3. Nd2 {[%clk 0:02:20]}  h6 {[%clk 0:02:49]} 4. Bh4 {[%clk 0:02:20]}  c5 {[%clk 0:02:49]} 5. e4 {[%clk 0:02:19]}  g5 {[%clk 0:02:37]} 6. Bg3 {[%clk 0:02:18]}  cxd4 {[%clk 0:02:38]} 7. e5 {[%clk 0:02:18]}  Nd5 {[%clk 0:02:36]} 8. h4 {[%clk 0:02:17]}  Rg8 {[%clk 0:01:57]} 9. hxg5 {[%clk 0:02:02]}  hxg5 {[%clk 0:01:58]} 10. Rh7 {[%clk 0:01:55]}  Nc6 {[%clk 0:01:55]} 11. Qh5 {[%clk 0:01:38]}  Rg7 {[%clk 0:01:54]} 12. Rxg7 {[%clk 0:01:36]}  Bxg7 {[%clk 0:01:52]} 13. Ngf3 {[%clk 0:01:35]}  Qe7 {[%clk 0:01:20]} 14. O-O-O {[%clk 0:01:21]}  Kd8 {[%clk 0:01:08]} 15. Nxg5 {[%clk 0:01:10]}  Kc7 {[%clk 0:01:05]} 16. Nxf7 {[%clk 0:01:03]}  a6 {[%clk 0:00:36]} 17. Bc4 {[%clk 0:00:54]}  Nc3 {[%clk 0:00:31]} 18. Re1 {[%clk 0:00:42]}  b5 {[%clk 0:00:15]} 19. Bb3 {[%clk 0:00:38]}  Bb7 {[%clk 0:00:12]} 20. Nd6 {[%clk 0:00:34]}  Rh8 {[%clk 0:00:10]} 21. Qf3 {[%clk 0:00:20]}  Na4 {[%clk 0:00:06]} 22. Bxa4 {[%clk 0:00:18]}  bxa4 {[%clk 0:00:07]} 23. Nxb7 {[%clk 0:00:18]}  Kxb7 {[%clk 0:00:07]} 24. Nc4 {[%clk 0:00:17]}  Kc7 {[%clk 0:00:07]} 25. Qa3 {[%clk 0:00:15]}  Qxa3 {[%clk 0:00:07]} 26. Nxa3 {[%clk 0:00:16]}  Rh5 {[%clk 0:00:06]} 27. Nc4 {[%clk 0:00:16]}  Bh6+ {[%clk 0:00:06]} 28. Kd1 {[%clk 0:00:16]}  Nb4 {[%clk 0:00:06]} 29. a3 {[%clk 0:00:16]}  Nd5 {[%clk 0:00:07]} 30. Re4 {[%clk 0:00:15]}  d3 {[%clk 0:00:06]} 31. cxd3 {[%clk 0:00:15]}  Rh1+ {[%clk 0:00:06]} 32. Re1 {[%clk 0:00:16]}  Rh5 {[%clk 0:00:05]} 33. Kc2 {[%clk 0:00:15]}  Kc6 {[%clk 0:00:02]} 34. Re4 {[%clk 0:00:12]}  Kc5 {[%clk 0:00:02]} 35. Rh4 {[%clk 0:00:12]}  Rxh4 {[%clk 0:00:02]} 36. Bxh4 {[%clk 0:00:13]}  Kd4 {[%clk 0:00:01]} 37. Bg3 {[%clk 0:00:13]}  Bf4 {[%clk 0:00:01]} 38. Bxf4 {[%clk 0:00:12]}  Nxf4 {[%clk 0:00:02]} 39. g3 {[%clk 0:00:11]}  Nxd3 {[%clk 0:00:02]} 40. Nb6 {[%clk 0:00:11]}  Nxe5 {[%clk 0:00:02]} 41. f4 {[%clk 0:00:12]} 1-0


[Site "https://www.chess.com"]

[Event "Titled Tuesday Blitz May 31 Early 2022"]
[White "Kovalev, Vladislav"]
[Black "Andreikin, Dmitry"]
[WhiteFideId "13504398"]
[BlackFideId "4158814"]
[WhiteElo "2530"]
[BlackElo "2736"]
[Result "0-1"]
[Round "03"]
[TimeControl "180+1"]
[Date "2022.05.31"]
[WhiteClock "0:00:03"]
[BlackClock "0:00:58"]

1. e4 {[%clk 0:03:00]}  c5 {[%clk 0:03:00]} 2. Nf3 {[%clk 0:03:01]}  e6 {[%clk 0:03:00]} 3. Nc3 {[%clk 0:03:00]}  a6 {[%clk 0:02:59]} 4. d4 {[%clk 0:03:00]}  cxd4 {[%clk 0:02:59]} 5. Nxd4 {[%clk 0:03:01]}  Qc7 {[%clk 0:02:59]} 6. g3 {[%clk 0:02:58]}  Nc6 {[%clk 0:02:57]} 7. Bg2 {[%clk 0:02:58]}  Nf6 {[%clk 0:02:57]} 8. O-O {[%clk 0:02:57]}  Nxd4 {[%clk 0:02:57]} 9. Qxd4 {[%clk 0:02:57]}  Bc5 {[%clk 0:02:58]} 10. Qd3 {[%clk 0:02:41]}  d6 {[%clk 0:02:50]} 11. Bg5 {[%clk 0:02:20]}  Bd7 {[%clk 0:02:44]} 12. Rad1 {[%clk 0:02:19]}  Ng4 {[%clk 0:02:37]} 13. h3 {[%clk 0:02:09]}  Ne5 {[%clk 0:02:33]} 14. Qe2 {[%clk 0:02:09]}  b5 {[%clk 0:02:29]} 15. a3 {[%clk 0:02:06]}  Rb8 {[%clk 0:02:22]} 16. Kh2 {[%clk 0:02:05]}  O-O {[%clk 0:02:17]} 17. Na2 {[%clk 0:01:48]}  Rfc8 {[%clk 0:02:06]} 18. c3 {[%clk 0:01:46]}  a5 {[%clk 0:02:03]} 19. f4 {[%clk 0:01:30]}  Nc4 {[%clk 0:02:01]} 20. f5 {[%clk 0:01:29]}  exf5 {[%clk 0:01:42]} 21. exf5 {[%clk 0:01:24]}  Re8 {[%clk 0:01:43]} 22. Qh5 {[%clk 0:00:47]}  Bc6 {[%clk 0:01:43]} 23. Bxc6 {[%clk 0:00:37]}  Qxc6 {[%clk 0:01:44]} 24. Nc1 {[%clk 0:00:38]}  Nxb2 {[%clk 0:01:33]} 25. Rd2 {[%clk 0:00:35]}  Nc4 {[%clk 0:01:31]} 26. Rg2 {[%clk 0:00:36]}  d5 {[%clk 0:01:22]} 27. f6 {[%clk 0:00:35]}  g6 {[%clk 0:01:22]} 28. Qh4 {[%clk 0:00:33]}  Ne3 {[%clk 0:01:17]} 29. Bxe3 {[%clk 0:00:32]}  Bxe3 {[%clk 0:01:18]} 30. Nd3 {[%clk 0:00:30]}  Re4 {[%clk 0:01:15]} 31. Nf4 {[%clk 0:00:25]}  Rbe8 {[%clk 0:01:07]} 32. Qg4 {[%clk 0:00:02]}  Qxf6 {[%clk 0:01:01]} 33. Rd1 {[%clk 0:00:02]}  Bxf4 {[%clk 0:00:59]} 34. gxf4 {[%clk 0:00:03]}  Rxf4 {[%clk 0:00:59]} 35. Qg3 {[%clk 0:00:03]}  Rf3 {[%clk 0:00:58]} 0-1


[Site "https://www.chess.com"]

[Event "Titled Tuesday Blitz May 31 Early 2022"]
[White "Lazavik, Denis"]
[Black "Matinian, Nikita"]
[WhiteFideId "13515110"]
[BlackFideId "24129100"]
[WhiteElo "2437"]
[BlackElo "2422"]
[Result "0-1"]
[Round "03"]
[TimeControl "180+1"]
[Date "2022.05.31"]
[WhiteClock "0:00:04"]
[BlackClock "0:00:26"]

1. d4 {[%clk 0:03:00]}  Nf6 {[%clk 0:02:58]} 2. c4 {[%clk 0:03:01]}  g6 {[%clk 0:02:58]} 3. g3 {[%clk 0:02:59]}  Bg7 {[%clk 0:02:58]} 4. Bg2 {[%clk 0:03:00]}  O-O {[%clk 0:02:58]} 5. Nc3 {[%clk 0:03:00]}  d6 {[%clk 0:02:57]} 6. Nf3 {[%clk 0:03:00]}  Nc6 {[%clk 0:02:58]} 7. O-O {[%clk 0:03:00]}  e5 {[%clk 0:02:58]} 8. d5 {[%clk 0:02:59]}  Nb8 {[%clk 0:02:58]} 9. e4 {[%clk 0:02:57]}  a5 {[%clk 0:02:58]} 10. Ne1 {[%clk 0:02:54]}  Na6 {[%clk 0:02:57]} 11. a3 {[%clk 0:02:54]}  Nc5 {[%clk 0:02:56]} 12. Be3 {[%clk 0:02:53]}  b6 {[%clk 0:02:39]} 13. b4 {[%clk 0:02:51]}  axb4 {[%clk 0:02:38]} 14. axb4 {[%clk 0:02:52]}  Rxa1 {[%clk 0:02:38]} 15. Qxa1 {[%clk 0:02:52]}  Nb3 {[%clk 0:02:39]} 16. Qd1 {[%clk 0:02:47]}  Nd4 {[%clk 0:02:38]} 17. Nc2 {[%clk 0:02:46]}  Nxc2 {[%clk 0:02:08]} 18. Qxc2 {[%clk 0:02:47]}  Ng4 {[%clk 0:02:08]} 19. Bd2 {[%clk 0:02:45]}  f5 {[%clk 0:02:09]} 20. f3 {[%clk 0:02:20]}  Nf6 {[%clk 0:02:08]} 21. Ra1 {[%clk 0:02:20]}  f4 {[%clk 0:02:05]} 22. Ne2 {[%clk 0:02:16]}  g5 {[%clk 0:01:47]} 23. c5 {[%clk 0:02:09]}  bxc5 {[%clk 0:01:42]} 24. bxc5 {[%clk 0:02:08]}  g4 {[%clk 0:01:41]} 25. Ra8 {[%clk 0:01:54]}  gxf3 {[%clk 0:01:15]} 26. Bxf3 {[%clk 0:01:53]}  Qd7 {[%clk 0:01:01]} 27. gxf4 {[%clk 0:01:37]}  exf4 {[%clk 0:00:58]} 28. Nxf4 {[%clk 0:01:35]}  Ng4 {[%clk 0:00:57]} 29. cxd6 {[%clk 0:01:22]}  Bd4+ {[%clk 0:00:53]} 30. Kh1 {[%clk 0:00:22]}  Nf2+ {[%clk 0:00:47]} 31. Kg2 {[%clk 0:00:22]}  Rxf4 {[%clk 0:00:34]} 32. Bxf4 {[%clk 0:00:03]}  Qh3+ {[%clk 0:00:34]} 33. Kg1 {[%clk 0:00:04]}  Ng4+ {[%clk 0:00:26]} 0-1


[Site "https://www.chess.com"]

[Event "Titled Tuesday Blitz May 31 Early 2022"]
[White "Levitskiy, Andrey"]
[Black "Stribuk, Artiom"]
[WhiteFideId "14132885"]
[BlackFideId "13515659"]
[WhiteElo "2301"]
[BlackElo "2259"]
[Result "0-1"]
[Round "03"]
[TimeControl "180+1"]
[Date "2022.06.01"]
[WhiteClock "0:00:09"]
[BlackClock "0:00:12"]

1. e4 {[%clk 0:03:00]}  c5 {[%clk 0:02:55]} 2. Nf3 {[%clk 0:03:00]}  Nc6 {[%clk 0:02:52]} 3. d4 {[%clk 0:03:01]}  cxd4 {[%clk 0:02:53]} 4. Nxd4 {[%clk 0:03:01]}  g6 {[%clk 0:02:53]} 5. c4 {[%clk 0:03:01]}  Bg7 {[%clk 0:02:53]} 6. Be3 {[%clk 0:03:01]}  Qb6 {[%clk 0:02:53]} 7. Nb5 {[%clk 0:02:49]}  Qa5+ {[%clk 0:02:53]} 8. N1c3 {[%clk 0:02:48]}  Nf6 {[%clk 0:02:52]} 9. f3 {[%clk 0:02:46]}  O-O {[%clk 0:02:49]} 10. Be2 {[%clk 0:02:43]}  d6 {[%clk 0:02:46]} 11. O-O {[%clk 0:02:41]}  a6 {[%clk 0:02:47]} 12. Nd4 {[%clk 0:02:41]}  Nxd4 {[%clk 0:02:47]} 13. Bxd4 {[%clk 0:02:40]}  Be6 {[%clk 0:02:47]} 14. Rc1 {[%clk 0:02:31]}  Rfc8 {[%clk 0:02:44]} 15. b3 {[%clk 0:02:31]}  b5 {[%clk 0:02:22]} 16. Nd5 {[%clk 0:01:32]}  Bxd5 {[%clk 0:02:08]} 17. exd5 {[%clk 0:01:28]}  bxc4 {[%clk 0:02:00]} 18. Bxc4 {[%clk 0:01:22]}  Nxd5 {[%clk 0:01:17]} 19. Bxg7 {[%clk 0:01:18]}  Ne3 {[%clk 0:01:17]} 20. Qd4 {[%clk 0:00:28]}  Nf5 {[%clk 0:01:11]} 21. Qd5 {[%clk 0:00:28]}  Qb6+ {[%clk 0:00:57]} 22. Kh1 {[%clk 0:00:24]}  e6 {[%clk 0:00:57]} 23. Qd2 {[%clk 0:00:10]}  Kxg7 {[%clk 0:00:55]} 24. Rfe1 {[%clk 0:00:08]}  d5 {[%clk 0:00:53]} 25. Bd3 {[%clk 0:00:08]}  Qd4 {[%clk 0:00:51]} 26. Qe2 {[%clk 0:00:08]}  a5 {[%clk 0:00:35]} 27. Bxf5 {[%clk 0:00:07]}  gxf5 {[%clk 0:00:35]} 28. Rcd1 {[%clk 0:00:06]}  Qf6 {[%clk 0:00:34]} 29. Qf2 {[%clk 0:00:07]}  Kh8 {[%clk 0:00:27]} 30. Rd4 {[%clk 0:00:04]}  Rc2 {[%clk 0:00:20]} 31. Qxc2 {[%clk 0:00:02]}  Qxd4 {[%clk 0:00:21]} 32. Qc6 {[%clk 0:00:02]}  Ra7 {[%clk 0:00:18]} 33. Qc2 {[%clk 0:00:01]}  Kg7 {[%clk 0:00:16]} 34. Rd1 {[%clk 0:00:01]}  Rc7 {[%clk 0:00:14]} 35. Qe2 {[%clk 0:00:01]}  Qc3 {[%clk 0:00:13]} 36. h3 {[%clk 0:00:01]}  Qc2 {[%clk 0:00:14]} 37. Qe1 {[%clk 0:00:01]}  Qc3 {[%clk 0:00:08]} 38. Rd2 {[%clk 0:00:02]}  Kh8 {[%clk 0:00:07]} 39. Qe2 {[%clk 0:00:02]}  Qc1+ {[%clk 0:00:07]} 40. Kh2 {[%clk 0:00:02]}  Qc3 {[%clk 0:00:08]} 41. Rd3 {[%clk 0:00:03]}  Qf6 {[%clk 0:00:08]} 42. Rd2 {[%clk 0:00:03]}  Rc3 {[%clk 0:00:07]} 43. Qd1 {[%clk 0:00:04]}  Qe5+ {[%clk 0:00:08]} 44. Kh1 {[%clk 0:00:03]}  Qc7 {[%clk 0:00:08]} 45. Qe2 {[%clk 0:00:02]}  Rc1+ {[%clk 0:00:09]} 46. Rd1 {[%clk 0:00:03]}  Qc2 {[%clk 0:00:09]} 47. Qxc2 {[%clk 0:00:02]}  Rxc2 {[%clk 0:00:09]} 48. a3 {[%clk 0:00:02]}  Rb2 {[%clk 0:00:10]} 49. b4 {[%clk 0:00:03]}  axb4 {[%clk 0:00:10]} 50. axb4 {[%clk 0:00:04]}  Rxb4 {[%clk 0:00:11]} 51. Rb1 {[%clk 0:00:04]}  Rxb1+ {[%clk 0:00:10]} 52. Kh2 {[%clk 0:00:05]}  Rb2 {[%clk 0:00:10]} 53. Kg3 {[%clk 0:00:06]}  Kg7 {[%clk 0:00:11]} 54. Kf4 {[%clk 0:00:07]}  Kf6 {[%clk 0:00:12]} 55. g4 {[%clk 0:00:08]}  e5+ {[%clk 0:00:12]} 56. Kg3 {[%clk 0:00:08]}  f4+ {[%clk 0:00:13]} 57. Kh4 {[%clk 0:00:09]}  Kg6 {[%clk 0:00:12]} 0-1


[Site "https://www.chess.com"]

[Event "Titled Tuesday Blitz May 31 Early 2022"]
[White "Liyanage, Ranindu Dilshan"]
[Black "Svane, Frederik"]
[WhiteFideId "9915834"]
[BlackFideId "12923044"]
[WhiteElo "1858"]
[BlackElo "2459"]
[Result "0-1"]
[Round "03"]
[TimeControl "180+1"]
[Date "2022.05.31"]
[WhiteClock "0:00:34"]
[BlackClock "0:01:13"]

1. e4 {[%clk 0:03:00]}  c5 {[%clk 0:02:59]} 2. Nf3 {[%clk 0:03:00]}  d6 {[%clk 0:02:59]} 3. d4 {[%clk 0:03:01]}  cxd4 {[%clk 0:03:00]} 4. Nxd4 {[%clk 0:03:02]}  Nf6 {[%clk 0:03:01]} 5. Nc3 {[%clk 0:03:02]}  a6 {[%clk 0:03:02]} 6. h3 {[%clk 0:02:59]}  e6 {[%clk 0:03:01]} 7. g4 {[%clk 0:02:58]}  Be7 {[%clk 0:03:01]} 8. Be3 {[%clk 0:02:58]}  b5 {[%clk 0:02:47]} 9. Bg2 {[%clk 0:02:46]}  Bb7 {[%clk 0:02:47]} 10. a3 {[%clk 0:02:46]}  O-O {[%clk 0:02:46]} 11. O-O {[%clk 0:02:45]}  Nfd7 {[%clk 0:02:45]} 12. Qe2 {[%clk 0:02:37]}  Nc6 {[%clk 0:02:44]} 13. Rfd1 {[%clk 0:02:36]}  Nxd4 {[%clk 0:02:44]} 14. Bxd4 {[%clk 0:02:37]}  Qc7 {[%clk 0:02:44]} 15. Rac1 {[%clk 0:02:36]}  Ne5 {[%clk 0:02:44]} 16. f4 {[%clk 0:02:29]}  Nc4 {[%clk 0:02:42]} 17. Rb1 {[%clk 0:02:29]}  e5 {[%clk 0:02:42]} 18. Be3 {[%clk 0:02:11]}  Nxe3 {[%clk 0:02:40]} 19. Qxe3 {[%clk 0:02:12]}  exf4 {[%clk 0:02:39]} 20. Qxf4 {[%clk 0:02:13]}  Rad8 {[%clk 0:02:37]} 21. Qf2 {[%clk 0:02:06]}  Bf6 {[%clk 0:02:36]} 22. Nd5 {[%clk 0:02:05]}  Bxd5 {[%clk 0:02:36]} 23. Rxd5 {[%clk 0:02:02]}  Qc4 {[%clk 0:02:32]} 24. c3 {[%clk 0:02:01]}  a5 {[%clk 0:02:29]} 25. Rbd1 {[%clk 0:01:57]}  b4 {[%clk 0:02:28]} 26. axb4 {[%clk 0:01:50]}  axb4 {[%clk 0:02:28]} 27. Rxd6 {[%clk 0:01:46]}  Rxd6 {[%clk 0:02:26]} 28. Rxd6 {[%clk 0:01:47]}  bxc3 {[%clk 0:02:25]} 29. bxc3 {[%clk 0:01:48]}  Qxc3 {[%clk 0:02:25]} 30. Rd5 {[%clk 0:01:35]}  Rb8 {[%clk 0:02:18]} 31. Bf1 {[%clk 0:01:07]}  Be5 {[%clk 0:01:52]} 32. Rd7 {[%clk 0:00:48]}  Qb3 {[%clk 0:01:43]} 33. Rd3 {[%clk 0:00:44]}  Qa4 {[%clk 0:01:35]} 34. Qf5 {[%clk 0:00:35]}  Bd4+ {[%clk 0:01:27]} 35. Kh1 {[%clk 0:00:35]}  g6 {[%clk 0:01:23]} 36. Qd7 {[%clk 0:00:34]}  Qxd7 {[%clk 0:01:13]} 0-1


[Site "https://www.chess.com"]